{"text_format":"1","workbook":"xlsx","n_sheets":1,"sheets":["Sachbericht"],"not_rendered":{"charts":0,"images":1,"macros":1,"external_links":0,"defined_names":1,"comments":0,"pivot_tables":0},"unopened":[],"bounds":{"document_bytes":16777216,"sheet_cells":100000,"rows_first":2000,"rows_last":500,"rows_between":2000,"halvings":0,"cell_chars":16384,"cell_head_chars":4096},"cells_cut":0,"cells_raw":0,"read":"whole","date_system":"1900"}

{"sheet":"Sachbericht","index":0,"n_rows":411,"n_cols":20,"rows_kept":411,"cut":false,"hidden":false,"merged":[[123,1,123,2],[123,3,123,6],[123,7,123,10],[292,1,300,10],[135,1,135,9],[109,1,109,6],[111,1,111,6],[111,9,111,10],[112,1,112,6],[112,9,112,10],[153,1,153,10],[116,7,116,10],[117,9,117,10],[118,9,118,10],[115,1,115,10],[116,5,116,6],[117,1,118,6],[114,1,114,10],[122,1,122,10],[124,5,124,6],[124,9,124,10],[116,1,116,2],[171,5,171,6],[171,9,171,10],[270,1,278,10],[313,1,321,10],[186,1,186,10],[147,1,147,10],[160,1,160,10],[128,1,128,10],[303,1,303,10],[282,1,282,10],[283,1,291,10],[175,1,175,2],[175,3,175,10],[176,1,176,2],[176,3,178,10],[177,1,177,2],[178,1,178,2],[183,1,183,10],[187,1,195,10],[252,1,260,10],[225,1,233,10],[214,1,222,10],[205,1,213,10],[170,5,170,6],[171,1,171,2],[172,1,172,2],[172,5,172,6],[167,1,167,10],[161,1,161,2],[161,3,161,10],[162,1,162,2],[162,3,164,10],[163,1,163,2],[164,1,164,2],[169,1,169,2],[169,3,169,6],[169,7,169,10],[156,9,156,10],[157,9,157,10],[158,5,158,6],[157,5,157,6],[143,7,143,10],[170,9,170,10],[196,1,204,10],[125,9,125,10],[148,3,148,10],[149,1,149,2],[149,3,151,10],[150,1,150,2],[151,1,151,2],[143,3,143,6],[144,1,144,2],[148,1,148,2],[138,1,138,10],[126,1,126,2],[126,5,126,6],[129,1,129,2],[129,3,129,10],[130,1,130,2],[130,3,132,10],[131,1,131,2],[132,1,132,2],[125,1,125,2],[125,5,125,6],[155,1,155,2],[155,3,155,6],[144,7,144,10],[16,5,16,10],[16,1,16,4],[34,5,34,6],[26,7,26,8],[26,9,26,10],[30,0,30,4],[32,1,32,4],[32,5,32,10],[22,1,22,10],[24,1,24,10],[18,1,18,2],[18,3,18,10],[44,1,44,10],[45,3,45,10],[42,1,42,2],[39,3,39,10],[47,3,47,10],[68,3,68,7],[2,9,2,10],[3,9,3,10],[1,1,3,3],[9,0,9,10],[13,0,13,10],[10,1,10,10],[14,1,14,4],[14,5,14,10],[7,0,7,5],[7,7,7,11],[5,1,5,10],[12,1,12,10],[42,3,42,10],[38,3,38,10],[41,3,41,10],[55,3,55,10],[40,3,40,10],[53,3,53,10],[48,3,48,10],[49,1,49,2],[49,3,49,10],[89,1,89,10],[91,1,92,6],[83,1,83,2],[84,1,84,2],[85,1,85,2],[86,1,86,2],[83,3,83,10],[84,3,86,10],[52,3,52,10],[88,1,88,10],[73,1,73,10],[77,7,77,10],[75,1,75,10],[408,1,408,10],[409,1,409,10],[410,1,410,10],[406,1,406,10],[407,1,407,10],[374,1,374,10],[401,1,402,3],[378,4,378,10],[382,4,382,10],[388,1,390,10],[397,1,397,10],[405,1,405,10],[395,2,395,10],[394,1,394,11],[381,2,381,10],[400,5,402,10],[158,9,158,10],[172,9,172,10],[26,0,26,2],[26,3,26,4],[26,5,26,6],[78,9,78,10],[181,0,181,3],[46,3,46,10],[342,2,342,10],[106,1,106,10],[116,3,116,4],[90,7,90,10],[77,1,77,2],[78,5,78,6],[79,1,79,2],[79,9,79,10],[95,1,103,10],[94,1,94,10],[107,1,107,10],[108,7,108,10],[109,9,109,10],[110,9,110,10],[91,9,91,10],[92,9,92,10],[20,1,20,10],[145,1,145,2],[144,3,144,6],[145,3,145,6],[76,1,76,10],[56,3,56,10],[54,3,54,10],[80,1,80,2],[79,5,79,6],[80,5,80,6],[77,3,77,6],[27,5,27,6],[35,5,35,7],[35,9,35,11],[27,9,27,10],[80,9,80,10],[82,1,82,10],[126,9,126,10],[145,7,145,10],[108,1,108,6],[110,1,110,6],[34,9,34,10],[34,7,34,8],[34,1,34,3],[174,1,174,10],[140,1,140,10],[358,1,358,2],[358,3,358,10],[359,1,359,2],[359,3,361,10],[360,1,360,2],[361,1,361,2],[357,1,357,10],[261,1,269,10],[155,7,155,10],[156,5,156,6],[157,1,157,2],[158,1,158,2],[142,1,142,2],[142,3,142,6],[142,7,142,10],[326,1,326,10],[335,1,335,10],[336,1,336,10],[337,1,337,2],[337,3,337,10],[338,1,338,2],[343,1,343,11],[371,4,371,10],[338,3,340,10],[339,1,339,2],[340,1,340,2],[327,1,327,10],[328,1,328,2],[328,3,328,10],[329,1,329,2],[329,3,331,10],[330,1,330,2],[331,1,331,2],[333,2,333,10],[367,1,367,11],[234,1,242,10],[59,1,67,10],[243,1,251,10],[304,1,312,10],[380,1,380,11],[346,1,346,10],[375,1,375,10],[368,2,368,10],[369,2,369,10],[370,2,370,10],[371,2,371,3],[376,2,376,10],[377,2,377,10],[378,2,378,3],[348,1,348,10],[349,1,349,2],[349,3,349,10],[350,1,350,2],[350,3,352,10],[351,1,351,2],[352,1,352,2],[354,2,354,10],[364,1,364,11],[363,2,363,10]]}
[]
[]
[]
[]
[]
[null,"Stand: August 2016"]
[]
["An die\nLandeskreditbank Baden-Württemberg\nBereich Finanzhilfen\nSchlossplatz 10\n76113 Karlsruhe",null,null,null,null,null,null,"per E-Mail an: \nesf-wirtschaft@wm.bwl.de"]
[]
["Sachbericht zum Verwendungsnachweis"]
[null,"für den Förderbereich Wirtschaft"]
[]
[null,"Der Weg zum Erfolg: Berufliche Bildung - mehr Menschen mit Migrationshintergrund in berufliche Aus- und Weiterbildung "]
[]
[null,"Aktenzeichen des Ministeriums für Wirtschaft, Arbeit und Wohnungsbau: ",null,null,null,"4305.84/5"]
[]
[null,"Kurzname des Projekts",null,null,null,"Migranten+B.Bildung"]
[]
[null,"spätester Abgabetermin:",null,"31. März für das vorangegangene Kalenderjahr bzw. \n3 Monate nach Ende des Projektzeitraums für den Schlussbericht"]
[]
[null,"Bearbeitungshinweise:\n\nBitte legen Sie im Sachbericht den Projektverlauf, Maßnahmeninhalte und Projektergebnisse für den Berichtszeitraum ausführlich und anschaulich dar. Bei Bedarf können Sie Ihre Ausführungen in weiteren Anlagen fortführen. \nHandelt es sich um den letzten Sachbericht am Ende des Projektzeitraums, ziehen Sie bitte neben den Angaben zum letzten Projektjahr eine inhaltliche Gesamtbilanz über die gesamte Projektlaufzeit. \n\nBitte senden Sie den Sachbericht zusammen mit den weiteren Dokumenten des Verwendungsnachweises per Post an die L-Bank. Zusätzlich senden Sie bitte den Sachbericht mit Anlagen zum Sachbericht per E-Mail an: esf-wirtschaft@wm.bwl.de. "]
[]
[null,"Sachbericht zum Verwendungsnachweis für das vorangegangene Kalenderjahr (nicht Schlussbericht)"]
[]
[null,"Sachbericht zum Verwendungsnachweis am Ende der Projektlaufzeit (Schlussbericht)"]
[]
["Berichtszeitraum:",null,null,"von",null,null,null,"bis"]
[null,null,null,null,null,"(TT.MM.JJJJ)",null,null,null,"(TT.MM.JJJJ)"]
[]
[]
["A. Allgemeine Angaben"]
[]
[1,"Vorgangsnummer der L-Bank \n(siehe Bewilligungsbescheid)"]
[]
[2,"Durchführungszeitraum des gesamten Projekts",null,null,"von",null,null,"bis",null,null,null,null,null,null,null,null,null,null,null,{"$f":"IF(F35>0,F35,\"01.01.2009\")","v":"01.01.2009"}]
[null,null,null,null,null," Projektbeginn (TT.MM.JJJJ)",null,null,null,"Projektende (TT.MM.JJJJ)"]
[]
[3,"Angaben zum Zuwendungsempfänger (rechtlich verantwortlich für die Durchführung des Projekts)"]
[null,"Name"]
[null,"Straße, Hausnr."]
[null,"PLZ, Ort"]
[null,"E-Mail"]
[null,"Webseite "]
[]
[4,"Angaben zum Träger, falls vom Zuwendungsempfänger abweichend (führt die Maßnahme tatsächlich durch)"]
[null,"Name"]
[null,"Straße, Hausnr."]
[null,"PLZ, Ort"]
[null,"E-Mail"]
[null,"Webseite "]
[]
[5,"Angaben zur projektverantwortlichen Person / Projektleitung"]
[null,"Name"]
[null,"Vorname"]
[null,"Telefon"]
[null,"Telefax"]
[null,"E-Mail"]
[]
[6,"Standorte der Durchführung der Maßnahme (Bitte geben Sie Straße, Hausnr., PLZ und Ort an.)"]
[]
[]
[]
[]
[]
[]
[]
[]
[]
[]
[]
["B. Monitoring: Angaben zu den Teilnehmer-Eintritten / Outputindikatoren "]
[]
["1.","Angaben zu den Teilnehmer-Eintritten"]
[null,"Hinweis: Die Abgabe der Ist-Werte der Monitoringdaten erfolgt über ZuMa."]
[]
["1.1.","Anzahl Teilnehmer/innen (ab 16-Jährige) mit vollständigen Stammblattdaten "]
[null,"Bitte erfassen Sie zunächst die vollständigen Monitoringdaten in der Upload-Tabelle und laden Sie diese in ZuMa hoch. Geben Sie in der unten stehenden Tabelle zusätzlich die im Antrag genannten bzw. die bewilligten Planzahlen (SOLL) an."]
[null,null,null," Aktuelles Berichtsjahr",null,null,null,"SOLL: über die Gesamtlaufzeit \ndes Projekts\nIST: ab Projektbeginn                 "]
[null,null,null,"männlich","weiblich","Summe",null,"männlich","weiblich","Summe"]
[null,"SOLL",null,null,null,{"$f":"D80+E80","v":0},null,null,null,{"$f":"H80+I80","v":0}]
[null,"IST",null,null,null,{"$f":"D81+E81","v":0},null,null,null,{"$f":"H81+I81","v":0}]
[]
[null,"Wie schätzen Sie die Zielerreichung ein? Erläutern Sie bitte Abweichungen zum Soll."]
[null,"Zielerreichung",null,"Erläuterung"]
[null,"vollständig"]
[null,"teilweise"]
[null,"gar nicht"]
[]
["1.2.","Nicht vollständige / keine Stammblattdaten"]
[null,"Bitte übertragen Sie Ihre Eingaben aus ZuMa. Bagatell-Teilnahmen rechnen Sie hier bitte nicht mit ein. "]
[null,null,null,null,null,null,null," Aktuelles Berichtsjahr"]
[null,"Anzahl Teilnehmer/innen (ab 16-Jährige) mit nicht vollständigen / keinen Stammblattdaten",null,null,null,null,null,"männlich","weiblich","Summe"]
[null,null,null,null,null,null,null,null,null,{"$f":"H93+I93","v":0}]
[]
[null,"Bitte legen Sie beim Vorliegen von unvollständigen Stammblattdaten die Gründe dafür dar."]
[]
[]
[]
[]
[]
[]
[]
[]
[]
[]
[]
["1.3.","Bagatell-Teilnahmen"]
[null,"Bagatellfälle: Anzahl Teilnehmer/innen mit geringer Verweildauer, die unter die Bagatellgrenze fallen (max. 1 Tag bzw. 8 Stunden, z.B. Telefonberatungen / Kurzberatungen) sowie kollektive Veranstaltungen (max. 1 Tag bzw. 8 Stunden, z.B. Großveranstaltungen). \nBitte übertragen Sie Ihre Eingaben aus ZuMa. "]
[null,null,null,null,null,null,null," Aktuelles Berichtsjahr"]
[null,null,null,null,null,null,null,"männlich","weiblich","Summe"]
[null," Anzahl Teilnehmer/innen Kurzberatungen",null,null,null,null,null,null,null,{"$f":"H111+I111","v":0}]
[null," Anzahl Teilnehmer/innen Veranstaltungen",null,null,null,null,null,null,null,{"$f":"H112+I112","v":0}]
[null,"Gesamtsumme Bagatell",null,null,null,null,null,{"$f":"H111+H112","v":0},{"$f":"I111+I112","v":0},{"$f":"J111+J112","v":0}]
[]
["1.4.","Anzahl Teilnehmer/innen unter 16 Jahren (zusätzlich außerhalb von ZuMa zu erfassen)"]
[null,"Bitte tragen Sie hier die Anzahl der im Berichtsjahr am Projekt beteiligten Teilnehmer/innen unter 16 Jahren  (aufgeschlüsselt nach Geschlecht und ohne Bagatellteilnahmen) ein."]
[null,null,null,null,null,null,null," Aktuelles Berichtsjahr"]
[null,"Anzahl Teilnehmer/innen unter 16 Jahren (ohne Bagatell)",null,null,null,null,null,"männlich","weiblich","Summe"]
[null,null,null,null,null,null,null,null,null,{"$f":"H119+I119","v":0}]
[]
["2.","Outputindikator"]
["2.1.","Zahl der Erwerbstätigen, auch Selbständige"]
[null,"Bitte geben Sie die im Antrag genannten bzw. die bewilligten Planzahlen (SOLL) an und übertragen Sie die tatsächlich erreichten Ist-Werte aus der aktuellen in ZuMa hochgeladenen Upload-Tabelle in die Ist-Felder."]
[null,null,null," Aktuelles Berichtsjahr",null,null,null,"SOLL: über die Gesamtlaufzeit \ndes Projekts\nIST: ab Projektbeginn"]
[null,null,null,"männlich","weiblich","Summe",null,"männlich","weiblich","Summe"]
[null,"SOLL",null,null,null,{"$f":"D126+E126","v":0},null,null,null,{"$f":"H126+I126","v":0}]
[null,"IST",null,null,null,{"$f":"D127+E127","v":0},null,null,null,{"$f":"H127+I127","v":0}]
[]
[null,"Wie schätzen Sie die Zielerreichung ein? Erläutern Sie bitte Abweichungen zum Soll."]
[null,"Zielerreichung",null,"Erläuterung"]
[null,"vollständig"]
[null,"teilweise"]
[null,"gar nicht"]
[]
[null,"Ergebnisindikator"]
[null,"Erwerbstätige, deren Projektteilnahme abgeschlossen ist (Austritt) \nund die ein Lernergebnis erreicht haben (Schätzung - in %): "]
[]
[]
["3.","Projektspezifische Kennzahlen "]
[]
[null,"3.1 Anzahl der im Hinblick auf Ausbildung und Beruf ihrer Kinder beratenen Eltern mit Migrationshintergrund (Elternpaar = 1)"]
[]
[null,null,null," Aktuelles Berichtsjahr",null,null,null,"SOLL: über die Gesamtlaufzeit \ndes Projekts\nIST: ab Projektbeginn"]
[null,null,null,"Eltern",null,null,null,"Eltern"]
[null,"SOLL"]
[null,"IST"]
[]
[null,"Wie schätzen Sie die Zielerreichung ein? Erläutern Sie bitte Abweichungen zum Soll."]
[null,"Zielerreichung",null,"Erläuterung"]
[null,"vollständig"]
[null,"teilweise"]
[null,"gar nicht"]
[]
[null,"3.2 Anzahl der im Hinblick auf die eigene Weiterbildung beratenen Väter und Mütter bzw. Menschen mit Migrationshintergrund im familiären Umfeld (pro Person)"]
[]
[null,null,null," Aktuelles Berichtsjahr",null,null,null,"SOLL: über die Gesamtlaufzeit \ndes Projekts\nIST: ab Projektbeginn"]
[null,null,null,"männlich","weiblich","Summe",null,"männlich","weiblich","Summe"]
[null,"SOLL",null,null,null,{"$f":"D158+E158","v":0},null,null,null,{"$f":"H158+I158","v":0}]
[null,"IST",null,null,null,{"$f":"D159+E159","v":0},null,null,null,{"$f":"H159+I159","v":0}]
[]
[null,"Wie schätzen Sie die Zielerreichung ein? Erläutern Sie bitte Abweichungen zum Soll."]
[null,"Zielerreichung",null,"Erläuterung"]
[null,"vollständig"]
[null,"teilweise"]
[null,"gar nicht"]
[]
[]
[null,"3.3 Anzahl der beratenen Jugendlichen mit Migrationshintergrund, die in eine Ausbildung münden (pro Person)"]
[]
[null,null,null," Aktuelles Berichtsjahr",null,null,null,"SOLL: über die Gesamtlaufzeit \ndes Projekts\nIST: ab Projektbeginn"]
[null,null,null,"männlich","weiblich","Summe",null,"männlich","weiblich","Summe"]
[null,"SOLL",null,null,null,{"$f":"D172+E172","v":0},null,null,null,{"$f":"H172+I172","v":0}]
[null,"IST",null,null,null,{"$f":"D173+E173","v":0},null,null,null,{"$f":"H173+I173","v":0}]
[]
[null,"Wie schätzen Sie die Zielerreichung ein? Erläutern Sie bitte Abweichungen zum Soll."]
[null,"Zielerreichung",null,"Erläuterung"]
[null,"vollständig"]
[null,"teilweise"]
[null,"gar nicht"]
[]
[]
["C. Projektverlauf"]
[]
["\n","Bitte stellen Sie den Projektverlauf, die Maßnahmeninhalte und Projektergebnisse für den Berichtszeitraum ausführlich dar und untermauern Sie die Beschreibung mit anschaulichen Beispielen.\nIm letzten Sachbericht am Ende des Projektzeitraums ziehen Sie bitte neben den Angaben zum letzten Projektjahr eine inhaltliche Gesamtbilanz über die gesamte Projektlaufzeit. \nFalls die Antwortfelder für Ihre Ausführungen nicht ausreichen, können Sie diese auf einer gesonderten Anlage fortführen. "]
[]
["1.","Projektinhalte und Projektumsetzung"]
[null,"a) Wie entwickelten sich die Ausgangslage / Handlungsbedarfe?\nb) Welche konkreten Projektinhalte haben Sie wie umgesetzt? Erläutern Sie hier auch Ihre \n    Bagatellmaßnahmen.\nc) Wie haben Sie bei Ihren Maßnahmen die unterschiedlichen Bedürfnisse von Frauen und \n    Männern berücksichtigt sowie individuell oder sozial benachteiligte Personengruppen    \n    einbezogen?"]
[]
[]
[]
[]
[]
[]
[]
[]
[]
[]
[]
[]
[]
[]
[]
[]
[]
[]
[]
[]
[]
[]
[]
[]
[]
[]
[]
[]
[]
[]
[]
[]
[]
[]
[]
[]
[]
[]
[]
[]
[]
[]
[]
[]
[]
[]
[]
[]
[]
[]
[]
[]
[]
[]
[]
[]
[]
[]
[]
[]
[]
[]
[]
[]
[]
[]
[]
[]
[]
[]
[]
[]
[]
[]
[]
[]
[]
[]
[]
[]
[]
[]
[]
[]
[]
[]
[]
[]
[]
[]
[]
[]
[]
[]
["2.","Resümee"]
[null,"Welches Resümee ziehen Sie im Hinblick auf die Projektumsetzung (Erkenntnisse, Schlussfolgerungen, Vorschläge, Hinweise etc.)?"]
[]
[]
[]
[]
[]
[]
[]
[]
[]
[]
[]
[]
[]
[]
[]
[]
[]
[]
[]
["3.","Sicherung der Projektergebnisse"]
[null,"Angaben hierzu müssen nur im letzten Sachbericht am Ende des Projektzeitraums gemacht werden: \nWie wollen Sie die Projektergebnisse nach Ablauf des Durchführungszeitraums verstetigen? Gibt es Überlegungen, wie die Projektergebnisse auch nach Projektende weiter genutzt und angeboten werden könnten? Bitte stellen Sie dies auch geschlechterdifferenziert und bezogenen auf die individuell oder sozial benachteiligten Personengruppen im Vorhaben dar."]
[]
[]
[]
[]
[]
[]
[]
[]
[]
[]
[]
[]
[]
[]
[]
[]
[]
[]
[]
[]
["4.","Querschnittsziele",null,null,null,null,null,null,null,null,null,null,null,null,null,null,null,null,null,{"$f":"IF(#REF!>0,#REF!,\"31.12.2015\")","v":{"$error":"#REF!"}}]
[]
[null,"4.1 Gleichstellung von Frauen und Männern"]
[null,"Konnten die im Antrag genannten Ziele im Bereich der Gleichstellung von Frauen und Männern im Projekt erreicht werden? Bitte beschreiben Sie kurz die erreichten Ziele und erläutern Sie eventuelle Abweichungen gegenüber dem Antrag."]
[null,"Zielerreichung",null,"Erläuterung"]
[null,"vollständig"]
[null,"teilweise"]
[null,"gar nicht"]
[]
[null,null,"Im Antrag wurden keine Ziele formuliert."]
[]
[null,"4.2 Chancengleichheit und Nichtdiskriminierung"]
[null,"Konnten die im Antrag genannten Ziele im Bereich der Chancengleichheit und Nichtdiskriminierung im Projekt erreicht werden? Bitte beschreiben Sie kurz die erreichten Ziele und erläutern Sie eventuelle Abweichungen gegenüber dem Antrag."]
[null,"Zielerreichung",null,"Erläuterung"]
[null,"vollständig"]
[null,"teilweise"]
[null,"gar nicht"]
[]
[null,null,"Im Antrag wurden keine Ziele formuliert."]
[]
[]
[null,"4.3 Ökologische Nachhaltigkeit"]
[null,"Wenden Sie im Rahmen des Projekts in Ihrer Organisation den Deutschen Nachhaltigkeitskodex an und / oder orientieren Sie sich an den Empfehlungen zum Green Public Procurement?"]
[null,"ja",null,null,"nein"]
[null,"Konnten darüber hinaus Maßnahmen durchgeführt werden, die zum Ziel der Nachhaltigkeit im Sinne des Schutzes der Umwelt und der Verbesserung ihrer Qualität beitragen? Bitte beschreiben Sie kurz die durchgeführten Maßnahmen und begründen Sie eventuelle Abweichungen gegenüber dem Antrag."]
[null,"Zielerreichung",null,"Erläuterung"]
[null,"vollständig"]
[null,"teilweise"]
[null,"gar nicht"]
[]
[null,null,"Im Antrag wurden keine Ziele formuliert."]
[]
[null,"4.4 Transnationale Kooperationen"]
[null,"Hatten Sie in Ihrer Projektumsetzung transnationale Komponenten wie Projektpartnerschaften, Erfahrungsaustausche oder andere gemeinsame Aktivitäten mit einem oder mehreren anderen europäischen Ländern vorgesehen? Bitte beschreiben Sie die durchgeführten transnationalen Aktivitäten und begründen Sie eventuelle Abweichungen gegenüber dem Antrag."]
[null,"Zielerreichung",null,"Erläuterung"]
[null,"vollständig"]
[null,"teilweise"]
[null,"gar nicht"]
[]
[null,null,"Im Antrag wurden keine Ziele formuliert."]
[]
["5.","Publizität"]
[]
[null,"5.1 Alle Projektbeteiligten wurden über die Förderung aus Mitteln des Europäischen Sozialfonds informiert und darauf hingewiesen, dass der Zuschuss vom Ministerium für Finanzen und Wirtschaft Baden-Württemberg aus Mitteln der Europäischen Union getragen wird. Dies erfolgte über:"]
[null,null,"Teilnahmebescheinigungen / Zertifikate"]
[null,null,"Pressearbeit / Veröffentlichungen (z. B. Broschüren, Flyer, Faltblätter)"]
[null,null,"Veranstaltungen"]
[null,null,"Sonstige:"]
[]
[]
[null,"5.2 ESF-Plakate"]
[null,"Während der Projektdurchführung wurden ESF-Plakate, die um Projektinformationen ergänzt wurden, ausgehängt:"]
[null,null,"in Räumen beim Zuwendungsempfänger"]
[null,null,"während Projektveranstaltungen in Veranstaltungsräumen Dritter"]
[null,null,"Sonstige Orte:"]
[]
[null,"5.3 Hinweis auf der Webseite"]
[null,null,"Auf der Webseite wurde eine kurze Projektbeschreibung eingestellt, aus der die Ziele und Ergebnisse sowie die finanzielle Unterstützung durch die EU hervorgehen."]
[null,null,"Adresse Webseite:"]
[null,null,"Wir betreiben keine Webseite."]
[]
[null,"5.4 Gibt es weitere geeignete Medien zur Vorstellung oder Veröffentlichung des Projekts?"]
[null,null,"ja"]
[null,"Falls ja, welche (z.B. Filme, PowerPoint -Präsentationen, Dokumentationen usw.)?"]
[]
[]
[]
[]
[null,null,"nein"]
[]
[null,"5.5 Dokumentation der Publizitätspflicht"]
[null,null,"Die Erfüllung der Publizitätspflichten wurde in geeigneter Weise dokumentiert (beispielsweise über Belegexemplare, Screenshot, Fotodokumentation oder ähnliches). Belegexemplare, Screenshot oder ähnliches liegen dem Verwendungsnachweis bei."]
[]
[null,"Wir bestätigen, dass die gemachten Angaben vollständig und richtig sind sowie die Bestimmungen des Zuwendungsbescheids beachtet wurden."]
[]
[]
[]
[]
[]
[null,"Ort, Datum                              ",null,null,null," Name und Unterschrift der vertretungsberechtigten Person/en"]
[]
[null,"Dem Ausdruck für die L-Bank sind beigefügt:"]
[null,"ZuMa-Ausdruck des Verwendungsnachweises"]
[null,"Beleglisten"]
[null,"Übersicht über die Personalausgaben zusammen mit den Aufgabenbeschreibungen"]
[null,"Weitere Anlagen zur Ergänzung des Sachberichts"]
[null,"Publizitätsnachweise (beispielsweise Belegexemplare, Screenshot, Fotodokumentation oder ähnliches)"]